[Event "Reykjavik Open 2025"]
[Site "Reykjavik"]
[Date "2025.04.14"]
[Round "8.11"]
[White "Ragnarsson, Dagur"]
[Black "Maze, Sebastien"]
[Result "0-1"]
[Annotator "TA"]
[ECO "B12"]
[WhiteElo "2352"]
[BlackElo "2557"]
[PlyCount "152"]
[EventDate "2025.04.09"]
[EventType "swiss"]
[EventCountry "ISL"]
[SourceTitle "playchess.com"]
[Source "ChessBase"]
[SourceQuality "1"]
[TimeControl "40/5400+30:1800+30"]

{[%evp 9,152,12,16,0,12,0,25,12,39,33,46,15,61,62,62,21,20,20,35,-9,0,0,0,0,0,0,0,0,45,25,31,16,39,18,26,34,40,23,38,31,35,-27,31,0,20,31,27,0,0,10,28,14,25,0,16,0,19,0,0,-25,0,0,0,-64,-70,-62,-31,-38,0,0,0,0,0,0,0,-86,-48,-78,-33,-61,-64,-129,-156,-141,-75,-71,-57,-188,-189,-354,-354,-354,-347,-439,-416,-439,-423,-413,-415,-407,-457,-485,-474,-468,-407,-407,-407,-407,-397,-528,-507,-1393,-1762,-1521,-1254,-1183,-1141,-994,-691,-468,0,-1002,-976,-935,-934,-862,-779,-862,-874,-29968,-29969,-29970,-29972,-29968,-29969,-29971,-29972,-29963,-29966,-29971,-29974,-29970,-29972,-29973,-29973]} 1. e4 {[%emt 0:00:04]} c6 {[%emt 0:00:29]} 2. d4 {[%emt 0:00:06]} d5 {[%emt 0:00:04]} 3. e5 {[%emt 0:00:21]} Bf5 {[%emt 0:00:24]} 4. c4 {[%emt 0:00:11]} e6 {[%emt 0:00:32]} 5. Nc3 {[%emt 0:00:10]} Ne7 {[%emt 0:00:38][%cal Oc6c5]} 6. h3 {[%emt 0:01:57] B12: Caro-Kann: Advance Variation.} h6 {[%emt 0:01:23][%cal Oc6c5]} 7. Nf3 {[%emt 0:02:19]} Nd7 {[%emt 0:01:48]} 8. b3 {[%emt 0:04:28] White has an edge.} Rc8 $146 {[%emt 0:16:40]} (8... Ng6 9. a3 dxc4 10. bxc4 c5 11. g4 cxd4 12. Nxd4 Bxg4 13. hxg4 Ndxe5 14. Be2 Bc5 {1-0 Carlsen,M (2862)-Vachier Lagrave,M (2784) Chess.com Speed blitz 2020 (3.37)}) 9. Be2 {[%emt 0:10:15]} Ng6 {[%emt 0:06:52]} 10. a3 {[%emt 0:11:47] Prevents Bb4.} Nh4 {[%emt 0:10:49]} (10... Be7 $1 $11) 11. Nxh4 $14 {[%emt 0:10:49]} Qxh4 {[%emt 0:00:09]} 12. g3 {[%emt 0:00:11]} Qd8 {[%emt 0:00:16]} 13. c5 {[%emt 0:01:53]} Be7 {[%emt 0:05:39]} 14. h4 {[%emt 0:11:43]} O-O {[%emt 0:07:27]} 15. g4 $1 {[%emt 0:02:40]} Bg6 {[%emt 0:00:01][%cal Of7f6] [#]} 16. g5 {[%emt 0:00:26]} hxg5 {[%emt 0:00:26]} 17. hxg5 {[%emt 0:00:11] White sacrificed a pawn} Bxg5 {[%emt 0:00:41]} 18. f4 {[%emt 0:03:29]} Bh6 {[%emt 0:01:48]} (18... Bh4+ $5 19. Kf1 Nxe5 20. dxe5 (20. fxe5 f6 $15) 20... d4 $18) 19. Bd3 {[%emt 0:05:02][%cal Of4f5]} Bxd3 {[%emt 0:00:58]} 20. Qxd3 {[%emt 0:00:05]} f5 $1 {[%emt 0:02:13]} 21. Ra2 {[%emt 0:03:05][%mdl 1024] White has compensation.} Kf7 {[%emt 0:05:00]} 22. Rg2 {[%emt 0:04:30]} Rh8 {[%emt 0:04:23]} 23. Qg3 {[%emt 0:06:39]} Qf8 {[%emt 0:03:10]} 24. Ne2 {[%emt 0:00:22]} Ke7 {[%emt 0:01:49]} 25. Qh4+ {[%emt 0:05:27]} (25. Kd1 $14) 25... Ke8 {[%emt 0:00:02]} (25... g5 $1 $11 26. Qg3 (26. fxg5 Bg7 $15) 26... g4 27. Qh4+ Ke8) 26. Ng1 {[%emt 0:01:43]} Qe7 {[%emt 0:00:18]} 27. Qh5+ $1 {[%emt 0:03:08]} Kd8 {[%emt 0:00:19][%cal Be8d8,Bd8c7,Bc7b8,Bb8a8][%mdl 32]} 28. b4 {[%emt 0:00:56]} Kc7 {[%emt 0:03:27][%cal Oh6f4]} 29. Qe2 {[%emt 0:00:07]} Kb8 {[%emt 0:04:17]} (29... a5 30. b5 Nxc5 31. dxc5 Qxc5 32. Qc2 Qxc2 33. Rxc2 Bxf4 34. Rxh8 Bg3+) 30. Rh3 {[%emt 0:01:03]} Qf7 {[%emt 0:00:50]} 31. a4 {[%emt 0:02:42]} Ka8 {[%emt 0:00:22]} 32. Nf3 {[%emt 0:01:14]} Rc7 {[%emt 0:03:35]} 33. Ng5 {[%emt 0:03:17]} Qe8 {[%emt 0:02:48]} 34. Rgh2 {[%emt 0:01:07]} Rg8 {[%emt 0:03:19]} 35. Nf3 {[%emt 0:00:28]} b6 {[%emt 0:00:38]} 36. Bd2 {[%emt 0:00:37]} (36. Qd3 $11) 36... Qb8 $15 {[%emt 0:00:27][%cal Oa7a5]} 37. Rg2 {[%emt 0:00:38]} Re8 {[%emt 0:04:12][%cal Oa7a5]} (37... bxc5 $5 38. dxc5 Bxf4 39. Bxf4 Qxb4+ 40. Qd2 Qe4+ 41. Kf1 Nxc5 $11) 38. Rg6 $1 {[%emt 0:02:33]} Rb7 {[%emt 0:00:38]} 39. Qa6 {[%emt 0:00:42]} bxc5 {[%emt 0:06:07]} 40. dxc5 {[%emt 0:00:31]} (40. bxc5 Qc7 $15) 40... Rxb4 {[%emt 0:04:21]} (40... Nf8 41. Rg1 Rxb4 42. Bxb4 Qxb4+ 43. Ke2 Qe4+) 41. Qxc6+ {[%emt 0:14:20]} Qb7 {[%emt 0:00:29]} 42. Rxe6 {[%emt 0:00:52]} (42. Qxb7+ $11 Rxb7 43. c6 Rb1+ 44. Ke2) 42... Qxc6 {[%emt 0:00:09]} (42... Re4+ {is more complex.} 43. Kf2 Qxc6 44. Rxc6 Bxf4 45. Bxf4 Rxf4 46. Kg2 Nxe5 47. Nxe5 Rxe5 48. Rb3 Re2+) 43. Rxc6 {[%emt 0:00:03]} Rc4 {[%emt 0:09:48]} 44. Rh5 {[%emt 0:03:24]} Nxc5 {[%emt 0:02:34]} 45. Rxc5 {[%emt 0:00:17]} Rxc5 $17 {[%emt 0:00:05]} 46. Rxf5 {[%emt 0:00:03]} Rcc8 {[%emt 0:02:49]} ({Better is} 46... Rb8 47. Kf2 Rc4) 47. Nd4 {[%emt 0:03:04]} g6 {[%emt 0:06:22]} 48. Rf6 {[%emt 0:04:18] [#] White is on the road to losing.} (48. Rf7 $1 $15) 48... Rf8 $1 $19 {[%emt 0:00:04]} 49. Rxf8 {[%emt 0:01:04]} (49. Rxg6 Bxf4 50. e6) 49... Bxf8 {[%emt 0:00:27][%mdl 4096] Endgame KRB-KBN} ({Not} 49... Rxf8 50. Ke2 $17) 50. a5 {[%emt 0:01:56]} Rc4 {[%emt 0:01:35]} 51. Ne6 {[%emt 0:00:12]} Be7 {[%emt 0:00:08]} 52. Ke2 {[%emt 0:00:11]} Kb7 {[%emt 0:00:32]} 53. Kd3 {[%emt 0:00:26]} a6 {[%emt 0:02:10]} 54. Nd4 {[%emt 0:00:25]} Bc5 {[%emt 0:01:23]} 55. Nf3 {[%emt 0:00:31]} Kc6 {[%emt 0:02:39]} 56. Ng5 {[%emt 0:03:21]} Be7 {[%emt 0:01:09]} 57. Nf3 {[%emt 0:00:08]} Kd7 {[%emt 0:00:21]} 58. Nd4 {[%emt 0:01:43]} Bc5 {[%emt 0:00:17]} 59. Nf3 {[%emt 0:00:50]} Bb4 {[%emt 0:02:22]} 60. Bxb4 {[%emt 0:01:13]} (60. Be3 $142) 60... Rxb4 {[%emt 0:00:02] KR-KN} 61. Nd4 {[%emt 0:00:07]} Ra4 {[%emt 0:00:35]} 62. Kc3 {[%emt 0:00:28]} Rc4+ {[%emt 0:02:30]} 63. Kd3 {[%emt 0:00:06]} Rc1 {[%emt 0:01:21] and ...Rc4 would now be decisive} 64. Nb3 {[%emt 0:00:35]} Rc4 {[%emt 0:00:38]} (64... Rc8 $142 65. Kd4 Rc4+ 66. Kxd5 Rxf4 67. Nc5+ Ke7) 65. Nd4 {[%emt 0:00:08]} Ke7 {[%emt 0:00:43]} 66. Ke3 {[%emt 0:00:15]} Rc3+ {[%emt 0:00:44]} 67. Kd2 {[%emt 0:00:14]} Ra3 {[%emt 0:00:15]} 68. Kc2 {[%emt 0:00:15]} Kf7 {[%emt 0:01:24]} ({And not} 68... Rxa5 69. Nc6+ Ke6 70. Nxa5 $11) 69. Nb3 {[%emt 0:02:19]} Ra4 {[%emt 0:00:10] Black mates.} 70. Kd3 {[%emt 0:00:06]} Rxf4 {[%emt 0:00:09]} 71. Nc5 {[%emt 0:00:04]} g5 {[%emt 0:00:54]} 72. Nxa6 {[%emt 0:00:44]} Ke6 {[%emt 0:01:16]} 73. Nc5+ {[%emt 0:01:02]} Kxe5 {[%emt 0:00:05]} 74. a6 {[%emt 0:00:14]} Rf3+ {[%emt 0:00:44]} 75. Kc2 {[%emt 0:00:47]} Ra3 {[%emt 0:00:47]} 76. Kb2 {[%emt 0:00:28]} Ra5 {[%emt 0:00:06] Weighted Error Value: White=0.32/Black=0.13 (very precise)   Mistake:       	White=7     	Black=3      Inaccurate:     	White=8     	Black=6      OK:         	White=14    	Black=23     Best:        	White=3     	Black=1      Strong:       	White=3     	Black=2} 0-1

[Event "Reykjavik Open 2025"]
[Site "Reykjavik"]
[Date "2025.04.14"]
[Round "8.13"]
[White "Papp, Gabor"]
[Black "Migot, Tangi"]
[Result "1-0"]
[Annotator "TA"]
[ECO "C55"]
[WhiteElo "2502"]
[BlackElo "2347"]
[PlyCount "83"]
[EventDate "2025.04.09"]
[EventType "swiss"]
[EventCountry "ISL"]
[SourceTitle "playchess.com"]
[Source "ChessBase"]
[SourceQuality "1"]
[TimeControl "40/5400+30:1800+30"]

{[%evp 13,82,33,42,33,37,12,12,20,35,33,46,0,0,0,0,-15,0,-4,13,0,0,0,0,0,0,0,17,5,9,5,80,77,79,77,104,93,93,83,106,106,121,119,123,85,71,80,66,79,115,117,147,151,141,136,164,152,165,111,174,161,122,147,168,104,529,529,497,469,497,462,29999]} 1. e4 {[%emt 0:00:03]} e5 {[%emt 0:00:11]} 2. Nf3 {[%emt 0:00:06]} Nc6 {[%emt 0:00:06]} 3. Bc4 {[%emt 0:00:06]} Nf6 {[%emt 0:00:09]} 4. d3 {[%emt 0:00:05]} Be7 {[%emt 0:00:19]} 5. O-O {[%emt 0:00:16]} O-O {[%emt 0:00:19]} 6. Re1 {[%emt 0:00:19]} d6 {[%emt 0:00:21]} 7. a4 {[%emt 0:00:06]} Be6 {[%emt 0:01:34]} 8. Bxe6 {[%emt 0:00:40]} fxe6 {[%emt 0:00:07]} 9. Nbd2 {[%emt 0:00:08]} a5 {[%emt 0:01:53]} 10. c3 {[%emt 0:00:24] The position is equal.} Qe8 {[%emt 0:05:49]} 11. Qb3 {[%emt 0:06:02]} Nd8 {[%emt 0:00:44]} 12. d4 {[%emt 0:01:36]} (12. Nf1 $14 {was preferrable.}) 12... exd4 $1 $11 {[%emt 0:06:22]} 13. Nxd4 {[%emt 0:01:03]} Qf7 $1 {[%emt 0:02:07]} 14. N2f3 {[%emt 0:01:29] [#] And now Ng5 would win.} Nd7 {[%emt 0:04:39]} 15. Qc2 {[%emt 0:02:05]} Qg6 {[%emt 0:06:05] aiming for ...c5.} 16. Qe2 {[%emt 0:00:27]} c6 {[%emt 0:11:52]} 17. b3 {[%emt 0:10:08]} Nf7 {[%emt 0:04:04]} 18. Ba3 {[%emt 0:00:51]} Rfe8 {[%emt 0:12:40]} 19. Rad1 {[%emt 0:02:20]} Bf8 {[%emt 0:04:34]} 20. c4 {[%emt 0:13:16]} Rad8 {[%emt 0:05:14]} 21. h3 {[%emt 0:03:58]} d5 {[%emt 0:05:33]} (21... e5 $11 {remains equal.} 22. Nf5 Qf6) 22. Bxf8 $16 {[%emt 0:00:34]} (22. exd5 {is more complex.} Bxa3 23. dxe6 Nc5 24. exf7+ Qxf7 25. Nc2) 22... Nxf8 {[%emt 0:00:39]} 23. exd5 {[%emt 0:00:06]} cxd5 {[%emt 0:00:13]} 24. Nb5 {[%emt 0:05:22]} dxc4 {[%emt 0:02:23]} 25. Qxc4 {[%emt 0:01:14]} Rc8 {[%emt 0:02:15]} 26. Qf4 {[%emt 0:05:35] White has more active pieces.} Qf5 {[%emt 0:03:28]} 27. Qxf5 {[%emt 0:06:47]} exf5 {[%emt 0:00:04]} 28. Rxe8 {[%emt 0:00:03]} Rxe8 {[%emt 0:00:05]} 29. Rd5 {[%emt 0:00:03]} g6 {[%emt 0:03:15]} 30. Na3 {[%emt 0:00:04][%cal Oa3c4]} b6 {[%emt 0:02:23]} 31. Nc4 {[%emt 0:00:04]} Re6 {[%emt 0:00:21]} 32. Nd4 {[%emt 0:00:23]} Rf6 {[%emt 0:05:09]} 33. f4 {[%emt 0:00:24]} Kg7 {[%emt 0:02:11]} 34. Kf2 {[%emt 0:00:21]} Nh6 {[%emt 0:05:05]} 35. Kf3 {[%emt 0:09:07]} ({White should try} 35. Re5 $18) 35... Ng8 {[%emt 0:02:51]} (35... Nf7 $16 36. Ke2 h5) 36. Nd6 $18 {[%emt 0:11:48] [#] Strongly threatening Ne8+.} Kh8 {[%emt 0:00:26]} 37. Nc8 {[%emt 0:00:19] Prevents Ne7} Kg7 {[%emt 0:00:54]} 38. Rd8 {[%emt 0:05:27]} ({White should play} 38. Rb5 $18 Ne6 39. Nxe6+ Rxe6 40. Nxb6 (40. Rxb6 Re1 $16)) 38... Kf7 $2 {[%emt 0:02:27][%mdl 8192] Black cannot hold the game after this.} (38... Ne6 $16 39. Rd7+ Kh8) 39. Nd6+ {[%emt 0:01:29]} Ke7 {[%emt 0:00:05]} 40. Nc6+ {[%emt 0:00:06]} Ke6 {[%emt 0:00:05]} 41. Ne8 {[%emt 0:30:29]} Rf7 {[%emt 0:30:55]} (41... Kf7 $18) 42. Rd6# {[%emt 0:00:09] Weighted Error Value: White=0.09 (flawless) /Black=0.53.  Loses game:     	---       	Black=1      Mistake:       	White=3     	Black=3      Inaccurate:     	White=1     	Black=2      OK:         	White=16    	Black=5      Best:        	White=3     	Black=2      Strong:       	---       	Black=2} 1-0

[Event "Reykjavik Open 2025"]
[Site "Reykjavik"]
[Date "2025.04.14"]
[Round "8.14"]
[White "Kilic, Eray"]
[Black "Borne, Felix"]
[Result "1/2-1/2"]
[Annotator "TA"]
[ECO "B45"]
[WhiteElo "2473"]
[BlackElo "2225"]
[PlyCount "84"]
[EventDate "2025.04.09"]
[EventType "swiss"]
[EventCountry "ISL"]
[SourceTitle "playchess.com"]
[Source "ChessBase"]
[SourceQuality "1"]
[TimeControl "40/5400+30:1800+30"]

{[%evp 11,84,21,26,27,32,17,22,16,15,10,23,24,94,91,92,92,93,95,98,102,94,92,129,111,117,114,78,12,22,16,86,62,85,66,62,68,64,0,0,0,-4,0,0,0,0,0,12,0,0,0,0,0,0,0,0,0,0,0,0,0,0,0,0,0,0,0,0,0,0,0,0,-2,-2,-2,0]} 1. e4 {[%emt 0:00:03]} c5 {[%emt 0:00:06]} 2. Nf3 {[%emt 0:00:04]} Nc6 {[%emt 0:00:08]} 3. d4 {[%emt 0:00:03]} cxd4 {[%emt 0:00:07]} 4. Nxd4 {[%emt 0:00:04]} Nf6 {[%emt 0:00:08]} 5. Nc3 {[%emt 0:00:03]} e6 {[%emt 0:00:11]} 6. Be2 {[%emt 0:00:05]} d5 {[%emt 0:00:38]} 7. exd5 {[%emt 0:02:21] B45: Sicilian Four Knights.} exd5 {[%emt 0:00:04]} 8. O-O {[%emt 0:01:24]} Bd6 {[%emt 0:00:44]} 9. Bf3 {[%emt 0:06:49] Black should prevent Re1+.} O-O {[%emt 0:01:21]} 10. Ndb5 {[%emt 0:01:59][%cal Ob5d6]} d4 {[%emt 0:23:58]} 11. Nxd6 {[%emt 0:06:41] Counterplay Black} dxc3 $146 {[%emt 0:21:45]} (11... Qxd6 $11 12. Nb5 Qc5 13. Bxc6 Bg4 14. Qxd4 Qxc6) (11... Qxd6 12. Nb5 Qb4 13. Bxc6 bxc6 14. Nxd4 c5 15. c3 Qc4 16. Nb3 Ba6 17. Re1 Rad8 {½-½ Zaw,Y (1525)-Chen,Z (1989) Eastern Asia-ch U16 7th 2023 (9)}) 12. bxc3 $16 {[%emt 0:02:15][%cal Bb2c3,Bc3c4,Bc4c5][%mdl 32]} Qa5 {[%emt 0:00:05]} 13. c4 $36 {[%emt 0:09:16][%mdl 2048] White is really pushing.} Rd8 {[%emt 0:06:47]} 14. Bf4 {[%emt 0:02:20]} Ne8 {[%emt 0:08:24]} 15. Re1 {[%emt 0:08:47] White is more active.} Nxd6 {[%emt 0:02:23]} 16. Bxd6 {[%emt 0:02:59]} Be6 {[%emt 0:01:10]} 17. c5 {[%emt 0:00:05]} Rac8 {[%emt 0:01:56]} 18. Be4 {[%emt 0:08:38] This pair of bishops is nice.} b6 {[%emt 0:04:33]} 19. Qh5 {[%emt 0:01:48]} (19. Qd3 $16 h6 20. Rad1) 19... h6 $11 {[%emt 0:02:55] [#] And now ...Rxd6 would win.} 20. Red1 {[%emt 0:03:59]} bxc5 {[%emt 0:13:18]} (20... Qb4 $11 21. Re1 Qa5) 21. Qxc5 $16 {[%emt 0:00:06]} Qa4 {[%emt 0:00:05]} 22. Qe3 {[%emt 0:02:22]} (22. f3 Nb8 23. Qb4 Qxb4 24. Bxb4 Nd7 25. a3) 22... Nb4 {[%emt 0:00:12]} 23. Qf4 {[%emt 0:01:51] [#] Threatens to win with Bxb4.} (23. Rd4 Nxc2 24. Rxa4 Nxe3 25. fxe3 Rxd6 26. Rxa7 Rd7 27. Rxd7 Bxd7 28. Rd1) 23... Qd7 $1 {[%emt 0:06:33]} 24. Qe5 {[%emt 0:09:40]} (24. Bxb4 $2 {loses.} Qxd1+ 25. Be1 Qxa1 $19) ({Better is} 24. h4 $14 Nd5 25. Bxd5 Qxd6 26. Qxd6 Rxd6 27. Be4 Rxd1+ 28. Rxd1) 24... Nxc2 $11 {[%emt 0:03:25] The position is equal.} 25. Rac1 {[%emt 0:00:44] Chess con chili.} Na3 {[%emt 0:00:16]} 26. Rxc8 {[%emt 0:01:57]} (26. Bxa3 $2 {leads to mate.} Qxd1+ 27. Rxd1 Rxd1#) 26... Rxc8 {[%emt 0:00:49]} 27. Bd3 {[%emt 0:02:25]} Nc4 {[%emt 0:00:10]} 28. Bxc4 {[%emt 0:00:04]} Bxc4 {[%emt 0:00:25] Black is weak on the dark squares} 29. h3 {[%emt 0:01:07][%cal Oe5g7] Opposite bishops and equal position} Qe6 {[%emt 0:01:24]} 30. Qg3 {[%emt 0:01:44]} Bxa2 {[%emt 0:00:28]} 31. Be5 {[%emt 0:01:00][%csl Ge5][%cal Rg3g7]} f6 {[%emt 0:00:02]} (31... Qg6 {simplifies} 32. Qxg6 fxg6 33. Rd7 Bf7) 32. Bf4 {[%emt 0:00:05]} Kh7 {[%emt 0:00:56]} 33. Rd6 {[%emt 0:00:06]} Qf5 {[%emt 0:00:30]} 34. Ra6 {[%emt 0:00:26][%csl LRa2,LRa7][%cal Oa6a7]} Bd5 {[%emt 0:00:38]} 35. Rxa7 {[%emt 0:00:57][%csl Ga7][%cal Rg3g7]} Qg6 {[%emt 0:00:01] Successful Defense Black} 36. Qxg6+ {[%emt 0:00:13]} Kxg6 {[%emt 0:00:01][%mdl 4096] Endgame KRB-KRB} 37. Kh2 {[%emt 0:00:05]} h5 {[%emt 0:00:19]} 38. Be3 {[%emt 0:00:21]} Rb8 {[%emt 0:00:46]} 39. Re7 {[%emt 0:00:12]} Bf7 {[%emt 0:01:40]} 40. Kg3 {[%emt 0:00:06]} Re8 {[%emt 0:00:11]} 41. Rc7 {[%emt 0:30:01]} Bd5 {[%emt 0:01:45]} 42. Rc5 {[%emt 0:00:00]} Be6 {[%emt 0:01:19] Weighted Error Value: White=0.08 (flawless) /Black=0.08 (flawless)   Mistake:       	White=2     	Black=2      Inaccurate:     	---       	Black=1      OK:         	White=22    	Black=13     Best:        	White=1     	Black=2      Strong:       	---       	Black=1} 1/2-1/2

[Event "Reykjavik Open 2025"]
[Site "Reykjavik"]
[Date "2025.04.14"]
[Round "8.26"]
[White "Schouten, Mathias Lind"]
[Black "Zierk, Steven"]
[Result "1/2-1/2"]
[Annotator "TA"]
[ECO "D24"]
[WhiteElo "2279"]
[BlackElo "2501"]
[PlyCount "145"]
[EventDate "2025.04.09"]
[EventType "swiss"]
[EventCountry "ISL"]
[SourceTitle "playchess.com"]
[Source "ChessBase"]
[SourceQuality "1"]
[TimeControl "40/5400+30:1800+30"]

{[%evp 9,145,37,43,45,49,49,50,55,55,45,47,30,48,0,0,0,16,0,-10,-13,-4,-10,0,-7,-10,0,22,-52,0,0,0,0,18,22,27,10,11,18,52,56,46,73,65,64,48,62,114,102,90,63,125,118,116,37,23,22,123,127,127,116,147,133,132,118,124,40,47,31,32,33,33,6,19,8,11,14,17,8,8,8,8,0,10,0,4,8,10,-19,-27,-52,-51,-83,-83,-83,-83,-93,-60,-60,-8,-56,-11,-21,-12,-12,-12,-12,-8,-12,-12,-12,-8,-8,-8,-8,-8,-8,-8,-8,-8,-8,-8,-11,0,0,0,0,0,0,0,0,0,-8,-8,-8,-8,-8,-8,-8]} 1. d4 {[%emt 0:00:05]} Nf6 {[%emt 0:00:08]} 2. c4 {[%emt 0:00:07]} e6 {[%emt 0:00:10]} 3. Nf3 {[%emt 0:00:08]} d5 {[%emt 0:00:09]} 4. Nc3 {[%emt 0:00:05]} dxc4 {[%emt 0:00:21]} 5. e4 {[%emt 0:00:42][%cal Be2e4,Be4e5][%mdl 32]} b5 {[%emt 0:00:09]} 6. e5 $1 {[%emt 0:00:34] D24: Queen's Gambit Accepted: 3 Nf3 Nf6 4 Nc3.} Nd5 {[%emt 0:00:06]} 7. Nxb5 {[%emt 0:00:04]} Nb6 {[%emt 0:00:07]} 8. Be2 {[%emt 0:01:10] White is slightly better.} Be7 {[%emt 0:00:45]} 9. O-O {[%emt 0:01:03]} Nc6 {[%emt 0:00:40]} 10. Nc3 {[%emt 0:05:38][%csl Oa7,Oc4,Oc7] Black has weak pawns} O-O {[%emt 0:06:00]} 11. b3 {[%emt 0:01:34]} (11. Be3 $14 {is superior.}) 11... cxb3 $11 {[%emt 0:01:13]} 12. axb3 {[%emt 0:00:07]} Bb7 {[%emt 0:05:26]} 13. Bd3 $146 {[%emt 0:03:26]} (13. Be3 Nb4 14. Qd2 a5 15. Rfd1 N6d5 16. Nxd5 Bxd5 17. Qc3 c6 18. Ne1 Qb6 19. Rab1 {0-1 Seel,C (2483)-Shimanov,A (2597) Titled Tuesday intern op 06th Apr blitz 2021 (1)}) 13... Nb4 {[%emt 0:03:56]} 14. Bb1 {[%emt 0:01:21]} c5 {[%emt 0:17:02]} (14... Bxf3 {keeps more tension.} 15. Qxf3 Qxd4 16. Be4 N6d5) 15. Ne4 {[%emt 0:25:14]} cxd4 {[%emt 0:02:29]} 16. Nxd4 {[%emt 0:08:22][%cal Od1g4]} Qd5 {[%emt 0:05:21][%cal Ob6d7]} 17. Bb2 {[%emt 0:02:52]} Qxe5 {[%emt 0:07:07][%cal Ob6d5]} 18. Qe2 {[%emt 0:03:51]} (18. Nc6 Qxb2 19. Nxe7+ Kh8 $15) (18. f4 $11 Qd5 19. Qg4) 18... Qf4 {[%emt 0:05:46]} (18... Qd5 $15 19. Rd1 Rfd8) 19. g3 {[%emt 0:04:40]} Qh6 {[%emt 0:00:58]} 20. h4 $40 {[%emt 0:12:10][%mdl 128] White has some attack.} Rfc8 {[%emt 0:08:03] Against Bc1} 21. Nb5 {[%emt 0:05:27]} Ba6 {[%emt 0:09:36] [#]} 22. Rxa6 $1 {[%emt 0:00:08]} Nxa6 {[%emt 0:00:04]} 23. Nbd6 {[%emt 0:00:04]} Bxd6 {[%emt 0:06:15]} 24. Nxd6 {[%emt 0:00:06]} Nb4 {[%emt 0:01:01][%cal Ba6b4,Bb4d5,Bd5f6][%mdl 32]} 25. Nxc8 {[%emt 0:01:25]} Rxc8 {[%emt 0:00:08]} 26. Rd1 {[%emt 0:02:44]} N4d5 {[%emt 0:04:03]} 27. Be4 {[%emt 0:00:10]} a5 {[%emt 0:06:29]} ({Black should try} 27... f5 $14 28. Bg2 f4) 28. Ra1 $16 {[%emt 0:05:26]} Nf6 {[%emt 0:03:13]} 29. Bf3 {[%emt 0:02:45] White is more active.} Nbd5 {[%emt 0:01:53]} (29... Qg6 $14) 30. Rxa5 {[%emt 0:01:33]} Qg6 {[%emt 0:00:32] [#]} 31. Qc4 {[%emt 0:03:22]} Qb1+ $14 {[%emt 0:00:47]} (31... Rxc4 32. Ra8+) 32. Kh2 {[%emt 0:00:02]} Re8 {[%emt 0:01:01]} (32... Ne7 $11 {keeps the balance.} 33. Qd4 h6) 33. Qe2 $16 {[%emt 0:03:00]} h6 {[%emt 0:01:42]} 34. b4 {[%emt 0:03:16][%cal Bb3b4,Bb4b5][%mdl 32]} Rb8 {[%emt 0:01:03]} 35. b5 {[%emt 0:00:46] Strongly threatening Bxd5.} Qf5 {[%emt 0:01:00]} 36. Be5 {[%emt 0:01:26] This pair of bishops is nice.} Rc8 {[%emt 0:00:31]} 37. Bxf6 {[%emt 0:01:52]} (37. Ra2 $16) 37... Nxf6 $14 {[%emt 0:00:23]} 38. Ra8 {[%emt 0:01:08]} Rxa8 {[%emt 0:00:10]} 39. Bxa8 {[%emt 0:00:03][%mdl 4096] Endgame KQB-KQN} Qc5 {[%emt 0:01:38]} 40. Kg2 {[%emt 0:00:44]} Kf8 {[%emt 0:02:31]} 41. Bc6 {[%emt 0:31:10]} g5 {[%emt 0:07:08]} 42. hxg5 {[%emt 0:00:00]} hxg5 {[%emt 0:00:06]} 43. Qd2 {[%emt 0:00:00]} Ke7 {[%emt 0:06:01]} 44. Kf1 {[%emt 0:00:00]} Ng4 {[%emt 0:02:10]} 45. Kg2 {[%emt 0:00:00]} Nf6 {[%emt 0:04:18]} 46. Kf1 {[%emt 0:00:00]} Ng4 {[%emt 0:01:18]} 47. Kg1 {[%emt 0:00:00]} f6 {[%emt 0:02:40]} 48. Bf3 {[%emt 0:00:00]} ({Much less strong is} 48. Qd7+ Kf8 49. Qd2 (49. Qxe6 $2 Qxf2+ 50. Kh1 Qh2#) 49... Ke7 $14) 48... Ne5 {[%emt 0:00:41]} 49. Be2 {[%emt 0:00:00] [#]} Qxb5 $1 {[%emt 0:00:22]} 50. Bxb5 {[%emt 0:00:00] Threatening mate with Kf1.} (50. Qc2 Qb4) 50... Nf3+ {[%emt 0:00:02]} 51. Kg2 {[%emt 0:00:00]} Nxd2 $17 {[%emt 0:00:07] KB-KN. Black is a pawn up.} 52. Bd3 {[%emt 0:00:00]} e5 {[%emt 0:07:26]} 53. f3 $1 {[%emt 0:00:00]} Nb3 {[%emt 0:03:55]} (53... g4 $15 54. f4 Nf3) 54. Kf2 {[%emt 0:00:00]} (54. Kh3 $11) 54... Nc5 {[%emt 0:00:16]} 55. Bf5 {[%emt 0:00:00] The position is equal.} Nb7 {[%emt 0:00:32]} 56. f4 {[%emt 0:01:12]} Nd6 {[%emt 0:00:20]} 57. Bb1 {[%emt 0:00:54]} Ke6 {[%emt 0:00:29]} 58. fxg5 {[%emt 0:00:38]} fxg5 {[%emt 0:00:40]} 59. Kf3 {[%emt 0:00:13]} Kd5 {[%emt 0:00:26]} 60. Kg4 {[%emt 0:01:06]} Ne4 {[%emt 0:00:48]} 61. Ba2+ {[%emt 0:02:57]} (61. Bxe4+ Kxe4 62. Kxg5 Kf3 63. Kh4 e4 64. g4 e3 65. Kg5 e2 66. Kf5 e1=Q (66... e1=B 67. g5 $11) 67. g5 Qe4+ 68. Kf6 Kf4 (68... Qf4+ {gets mated.} 69. Ke7 Qxg5+ 70. Ke6 Qd8 71. Kf7 Qd7+ 72. Kg6 Qe7 73. Kf5 Qd6 74. Kg5 Qe6 75. Kh5 Kf4 76. Kh4 Qh6#) 69. g6 Qe5+ 70. Kf7 Kf5 71. g7 Qf6+ 72. Ke8 Qxg7 73. Kd8 Ke6 74. Kc8 Qa7 75. Kd8 Qd7#) 61... Kd4 {[%emt 0:00:11]} 62. Bf7 {[%emt 0:00:47]} Nf2+ {[%emt 0:00:58]} 63. Kxg5 {[%emt 0:00:23]} e4 {[%emt 0:00:29]} 64. Bh5 {[%emt 0:00:11]} e3 {[%emt 0:00:28]} 65. Bf3 {[%emt 0:00:43]} Kd3 {[%emt 0:00:11]} 66. Kf5 {[%emt 0:02:28]} Nh3 {[%emt 0:00:48]} 67. Bb7 {[%emt 0:00:51]} Kd2 {[%emt 0:00:27] ( -> ...e2)} (67... e2 $5 68. Ba6+ $8 Ke3 69. Bxe2 Kf2 $11) 68. Ba6 $1 {[%emt 0:00:06]} Nf2 {[%emt 0:00:38] ( -> ...Nd3)} 69. Bf1 $1 {[%emt 0:00:06]} Ke1 {[%emt 0:00:35]} 70. Kf4 {[%emt 0:00:14]} Kxf1 {[%emt 0:00:31]} 71. Kxe3 {[%emt 0:00:05]} Kg2 {[%emt 0:00:02]} 72. g4 {[%emt 0:00:04]} Nxg4+ {[%emt 0:00:02]} 73. Ke4 {[%emt 0:00:30] Weighted Error Value: White=0.11 (very precise) /Black=0.13 (very precise)   Mistake:       	White=5     	Black=5      Inaccurate:     	White=4     	Black=3      OK:         	White=27    	Black=29     Best:        	White=3     	Black=3      Strong:       	White=3     	---        Brilliant:      	White=1     	Black=1} 1/2-1/2